bitfinex-derivatives/quotes_SOLF0:USTF0_20260218
["timestamp","ask_amount","ask_price","bid_price","bid_amount"]
[1771428135542,10.8656,82.868,82.833,7.47011705]
[1771428136934,10.8666,82.86,82.832,75.98]
[1771428137134,8.13985234,82.87,82.823,75.98]
[1771428137336,75.98,82.904,82.831,7.89427306]
[1771428137337,8.13985234,82.904,82.831,7.89427306]
[1771428137535,8.13985234,82.904,82.83,6.23942226]
[1771428137536,8.13985234,82.904,82.851,7.89427306]
[1771428137935,8.13985234,82.887,82.839,75.98]
[1771428138340,21.7182,82.918,82.841,7.89427306]
[1771428138536,8.13985234,82.917,82.841,7.89427306]
[1771428138841,10.8633,82.885,82.845,7.89427306]
[1771428139541,10.8633,82.885,82.847,7.89427306]
[1771428140449,10.8642,82.878,82.847,7.89427306]
[1771428140744,8.13985234,82.902,82.847,7.89427306]
[1771428141648,10.8642,82.879,82.847,7.89427306]
[1771428142337,10.8649,82.873,82.847,7.89427306]
[1771428143350,10.8657,82.867,82.843,76.0]
[1771428143553,7.63570926,82.889,82.843,57.8763]
[1771428143747,7.63570926,82.889,82.843,39.6074]
[1771428144542,7.63570926,82.916,82.845,10.8685]
[1771428144841,7.63570926,82.916,82.85,6.23942226]
[1771428145047,7.63570926,82.916,82.851,76.0]
[1771428145251,7.63570926,82.916,82.85,6.23942226]
[1771428145550,7.63570926,82.916,82.852,2.00311894]
[1771428146448,10.8635,82.884,82.852,2.00311894]
[1771428146652,7.63570926,82.903,82.852,2.00311894]
[1771428148950,7.63570926,82.917,82.853,2.02449328]
[1771428149455,7.63570926,82.935,82.871,2.0950068]
[1771428149658,10.8591,82.917,82.871,2.0950068]
[1771428149854,7.63570926,82.95,82.891,2.0950068]
[1771428150456,10.8559,82.942,82.895,2.09799967]
[1771428150760,10.8559,82.942,82.897,2.09799967]
[1771428150945,7.63570926,82.95,82.898,2.09799967]
[1771428150946,18.49050926,82.95,82.898,2.09799967]
[1771428151145,10.8548,82.95,82.9,2.23154578]
[1771428152352,10.8548,82.95,82.902,2.23465332]
[1771428152552,10.8537,82.958,82.912,2.23465332]
[1771428152758,7.63570926,82.979,82.914,2.23465332]
[1771428153250,7.63570926,82.995,82.931,2.31341418]
[1771428153451,7.63570926,82.995,82.93,6.23942226]
[1771428153651,7.63570926,82.995,82.925,75.98]
[1771428154255,10.8511,82.978,82.919,2.31628772]
[1771428154456,7.63570926,82.98,82.931,2.31628772]
[1771428154762,7.63570926,82.999,82.932,2.31628772]
[1771428154966,7.63570926,82.999,82.951,2.31628772]
[1771428156665,7.63570926,82.999,82.952,13.16793496]
[1771428157065,7.63570926,82.999,82.952,2.31343496]
[1771428157869,21.6844,83.047,82.93,17.09672226]
[1771428157870,7.63570926,82.98,82.93,17.09672226]
[1771428158171,7.63570926,82.98,82.919,2.33235308]
[1771428158369,7.63570926,82.98,82.912,75.94]
[1771428158370,7.63570926,82.979,82.912,75.94]
[1771428159259,7.63570926,82.979,82.91,8.59066093]
[1771428159454,7.63570926,82.979,82.912,75.94]
[1771428159656,7.63570926,82.971,82.92,10.8586]
[1771428160564,7.63570926,82.971,82.867,169.0201]
[1771428160565,7.63570926,82.971,82.889,75.94]
[1771428160764,7.63570926,82.939,82.867,75.94]
[1771428161068,7.63570926,82.956,82.881,2.35391518]
[1771428161268,10.8541,82.955,82.898,10.8614]
[1771428161566,7.63570926,82.956,82.894,2.4407779]
[1771428162667,7.63570926,82.956,82.906,10.8604]
[1771428163261,7.63570926,82.956,82.894,2.4407779]
[1771428163858,7.63570926,82.956,82.897,2.50922497]
[1771428164865,10.8552,82.947,82.898,10.8615]
[1771428165371,7.63570926,82.956,82.898,10.8615]
[1771428165773,10.8551,82.948,82.898,10.8615]
[1771428166371,18.84926075,82.948,82.898,10.8615]
[1771428166571,7.99416075,82.947,82.898,10.8615]
[1771428168370,7.99416075,82.939,82.888,10.8628]
[1771428168974,10.8567,82.935,82.888,10.8628]
[1771428169465,10.8567,82.935,82.888,86.8028]
[1771428169665,7.99416075,82.939,82.895,10.8619]
[1771428170068,10.8558,82.943,82.895,10.8619]
[1771428170069,7.94146777,82.951,82.903,10.8609]
[1771428170667,10.8549,82.95,82.895,2.54899095]
[1771428170870,7.94146777,82.951,82.895,13.41089095]
[1771428171575,18.79616777,82.951,82.901,10.8612]
[1771428171772,7.4914962,82.95,82.901,10.8612]
[1771428172676,10.8539,82.957,82.908,13.40809781]
[1771428172882,10.8539,82.957,82.908,2.54789781]
[1771428173379,10.8539,82.957,82.9,6.23942226]
[1771428173380,7.4914962,82.965,82.91,2.56805058]
[1771428174480,7.4914962,82.965,82.923,10.8582]
[1771428174481,10.853,82.964,82.923,10.8582]
[1771428175178,7.92513127,82.983,82.926,2.57572728]
[1771428176680,8.11413152,82.98,82.935,10.8566]
[1771428176877,8.11413152,82.98,82.935,13.44166033]
[1771428177075,8.11413152,82.98,82.936,2.58506033]
[1771428177282,10.8514,82.976,82.936,2.58506033]
[1771428178381,10.8514,82.976,82.929,75.94]
[1771428178973,18.40114582,82.976,82.929,75.94]
[1771428179174,18.40114582,82.976,82.924,10.8581]
[1771428179372,18.40114582,82.976,82.925,78.50685338]
[1771428179881,10.852,82.972,82.925,78.50685338]
[1771428181981,10.8529,82.965,82.925,78.50685338]
[1771428182482,10.8528,82.966,82.921,10.8585]
[1771428182687,8.17701905,82.965,82.917,75.92]
[1771428183588,10.8539,82.957,82.918,10.8589]
[1771428183788,8.17701905,82.965,82.918,10.8589]
[1771428184788,10.853,82.964,82.918,10.8589]
[1771428186696,10.853,82.964,82.917,75.92]
[1771428186697,8.17701905,82.996,82.94,6.22580129]
[1771428186888,8.17701905,83.029,82.941,2.53545082]
[1771428187187,8.17701905,83.029,82.943,2.55987783]
[1771428187387,8.17701905,83.013,82.957,2.55987783]
[1771428187593,8.17701905,83.013,82.958,75.92]
[1771428188292,8.17701905,82.996,82.94,6.22580129]
[1771428188597,8.17701905,82.996,82.927,75.92]
[1771428188794,8.17701905,82.979,82.927,75.92]
[1771428188991,8.17701905,82.979,82.928,2.5613021]
[1771428189390,8.17701905,82.979,82.857,169.042]
[1771428189391,8.17701905,82.979,82.91,2.47913292]
[1771428189590,8.17701905,82.979,82.911,75.92]
[1771428189793,7.55441697,82.953,82.9,10.8613]
[1771428190689,10.8553,82.946,82.9,10.8613]
[1771428191487,10.8553,82.946,82.905,10.8606]
[1771428192194,7.55441697,82.953,82.905,10.8606]
[1771428192392,7.55441697,82.953,82.9,6.22580129]
[1771428192393,7.55441697,82.953,82.909,10.86]
[1771428192694,7.55441697,82.953,82.91,75.92]
[1771428193392,18.40881697,82.953,82.91,75.92]
[1771428195000,10.8534,82.961,82.914,10.8595]
[1771428195193,10.8534,82.961,82.915,2.46479105]
[1771428195504,7.7327937,82.969,82.915,2.46479105]
[1771428195800,7.7327937,82.969,82.916,75.92]
[1771428195999,8.12800898,82.992,82.936,10.8565]
[1771428196204,8.12800898,82.99,82.911,2.46639554]
[1771428196404,8.12800898,82.988,82.929,75.92]
[1771428197697,8.12800898,82.981,82.93,10.8573]
[1771428197899,8.12800898,82.981,82.911,2.46639554]
[1771428198107,8.12800898,82.981,82.913,2.47112398]
[1771428198406,8.12800898,82.98,82.929,10.8575]
[1771428198611,8.12800898,83.008,82.914,2.47274327]
[1771428198801,8.12800898,82.988,82.921,2.47274327]
[1771428199499,8.12800898,82.978,82.906,78.24843592]
[1771428199705,8.12800898,82.976,82.906,2.32843592]
[1771428199897,8.12800898,82.971,82.921,2.32843592]
[1771428200097,8.12800898,82.998,82.923,2.32839728]
[1771428200900,8.12800898,82.984,82.931,10.8571]
[1771428201100,8.12800898,82.984,82.927,75.92]
[1771428201403,8.12800898,82.982,82.921,75.92]
[1771428201706,8.12800898,82.98,82.921,75.92]
[1771428201901,8.12800898,82.956,82.905,10.8605]
[1771428202201,8.12800898,82.971,82.91,6.22580129]
[1771428202507,8.12800898,82.971,82.911,2.0378093]
[1771428202903,8.12800898,82.971,82.912,75.92]
[1771428203808,8.12800898,82.969,82.921,10.8585]
[1771428205812,8.12800898,82.969,82.928,10.8576]
[1771428208309,10.8513,82.977,82.934,10.8568]
[1771428208616,8.12800898,82.984,82.931,1.99808465]
[1771428208908,8.12800898,82.984,82.949,10.8549]
[1771428209618,10.8491,82.994,82.949,10.8549]
[1771428210210,10.8493,82.992,82.949,10.8549]
[1771428213808,7.73928885,82.981,82.941,10.8559]
[1771428214618,7.73928885,82.979,82.941,10.8559]
[1771428216017,10.8517,82.974,82.931,10.8572]
[1771428216610,18.59098885,82.974,82.931,10.8572]
[1771428216816,10.8519,82.972,82.931,10.8572]
[1771428217619,18.59118885,82.972,82.931,10.8572]
[1771428217821,6.22580129,83.0,82.924,10.8581]
[1771428217822,7.73928885,82.966,82.924,10.8581]
[1771428218412,10.853,82.964,82.924,10.8581]
[1771428219320,7.73928885,82.966,82.914,75.92]
[1771428219522,7.73928885,82.966,82.91,6.22580129]
[1771428219918,7.73928885,82.964,82.915,10.8592]
[1771428220416,7.73928885,82.959,82.906,75.92]
[1771428220624,7.73928885,82.959,82.914,10.8594]
[1771428221922,7.73928885,82.957,82.906,10.8604]
[1771428222723,7.73928885,82.954,82.906,10.8604]
[1771428224023,7.73928885,82.952,82.906,10.8604]
[1771428224324,7.73928885,82.952,82.899,10.8614]
[1771428225626,7.46562512,82.95,82.899,10.8614]
[1771428227317,7.46562512,82.941,82.887,75.92]
[1771428227522,7.46562512,82.941,82.888,1.92402816]
[1771428227921,6.22580129,82.96,82.888,1.92402816]
[1771428227922,7.46562512,82.938,82.888,1.92402816]
[1771428228127,7.46562512,82.938,82.871,1.92402816]
[1771428228725,7.46562512,82.916,82.871,1.92402816]
[1771428229732,7.46562512,82.916,82.872,1.90515996]
[1771428230231,18.32492512,82.916,82.872,1.90515996]
[1771428230632,7.46562512,82.916,82.872,1.90515996]
[1771428231332,10.8597,82.913,82.872,1.90515996]
[1771428233720,7.46562512,82.916,82.866,10.8657]
[1771428233721,10.8604,82.907,82.866,10.8657]
[1771428233929,7.46562512,82.916,82.858,1.22885386]
[1771428234730,21.7131,82.937,82.826,70.0019]
[1771428234731,10.8623,82.893,82.846,12.09813451]
[1771428234933,10.8623,82.893,82.847,1.22983451]
[1771428235139,7.65855146,82.903,82.847,1.22983451]
[1771428235436,7.65855146,82.903,82.851,1.23023614]
[1771428236733,10.8619,82.896,82.853,10.8674]
[1771428237237,7.65855146,82.903,82.853,10.8674]
[1771428238432,7.65855146,82.903,82.853,11.90647894]
[1771428240529,7.65855146,82.903,82.853,10.8674]
[1771428240734,7.77069017,82.899,82.844,10.8686]
[1771428241039,7.77069017,82.899,82.82,1.01995055]
[1771428241336,7.77092172,82.875,82.807,1.02044347]
[1771428241536,7.77092172,82.875,82.795,1.02044347]
[1771428242034,7.77092172,82.871,82.811,1.02044347]
[1771428242834,7.77092172,82.871,82.831,10.8703]
[1771428244842,7.75869513,82.885,82.839,1.04766001]
[1771428245341,7.76767037,82.874,82.824,10.8712]
[1771428245932,7.76767037,82.871,82.819,75.98]
[1771428246134,7.76767037,82.871,82.806,1.03058811]
[1771428246744,7.76772666,82.857,82.806,1.03058811]
[1771428247138,7.76772666,82.857,82.813,10.8726]
[1771428247342,7.76772666,82.857,82.806,1.03058811]
[1771428247746,7.76689006,82.856,82.807,1.0339022]
[1771428248248,7.76693596,82.852,82.796,75.98]
[1771428248449,6.23769554,82.85,82.787,75.98]
[1771428248642,7.76693596,82.849,82.778,1.03466826]
[1771428248845,7.76693596,82.829,82.779,1.03466826]
[1771428249546,7.76881645,82.818,82.763,1.03178046]
[1771428249749,7.76881645,82.833,82.763,1.03178046]
[1771428250043,7.76881645,82.833,82.768,1.03178046]
[1771428250243,7.76886318,82.829,82.768,1.03178046]
[1771428250444,7.76886318,82.809,82.758,76.0]
[1771428250643,7.76886318,82.809,82.754,1.03255655]
[1771428251245,7.7380231,82.799,82.747,10.8814]
[1771428251651,21.7372,82.845,82.728,10.8839]
[1771428251652,10.8762,82.787,82.728,10.8839]
[1771428251853,7.7380231,82.786,82.729,1.09511024]
[1771428252043,7.7380231,82.802,82.729,1.09511024]
[1771428252247,7.7380231,82.802,82.73,76.0]
[1771428252448,7.7380231,82.802,82.741,1.09589117]
[1771428253448,18.63125425,82.784,82.741,1.09589117]
[1771428254041,18.63125425,82.784,82.731,10.8835]
[1771428254042,18.63145425,82.782,82.731,10.8835]
[1771428254241,18.63145425,82.782,82.733,11.94461765]
[1771428255541,10.8753,82.794,82.745,1.19881947]
[1771428256255,7.77918038,82.793,82.729,1.19667299]
[1771428256450,7.77918038,82.779,82.714,1.19667299]
[1771428256749,10.8782,82.772,82.715,12.08227299]
[1771428256952,7.77918038,82.771,82.716,1.19667299]
[1771428257342,10.8784,82.77,82.721,10.8848]
[1771428257550,7.77918038,82.769,82.716,1.19667299]
[1771428257950,7.77918038,82.769,82.718,12.05188095]
[1771428258156,7.77918038,82.769,82.719,1.16678095]
[1771428258953,7.77918038,82.785,82.723,1.16453461]
[1771428259352,10.8735,82.808,82.741,1.13192345]
[1771428259552,18.65268038,82.808,82.741,1.13192345]
[1771428259754,169.0149,82.871,82.705,2.10257293]
[1771428259755,7.77918038,82.839,82.761,1.13192345]
[1771428260050,6.23769554,82.84,82.761,1.13192345]
[1771428260051,7.77918038,82.825,82.761,1.13192345]
[1771428260353,7.77918038,82.819,82.741,1.1298599]
[1771428260749,7.77918038,82.839,82.761,1.1298599]
[1771428260952,7.77918038,82.839,82.76,6.23769554]
[1771428260953,7.77918038,82.839,82.763,1.1298599]
[1771428261352,7.77918038,82.838,82.777,10.8774]
[1771428261754,7.77918038,82.838,82.764,1.20873822]
[1771428261954,7.77918038,82.838,82.785,10.8764]
[1771428262947,7.77918038,82.838,82.78,6.23769554]
[1771428262948,7.77918038,82.837,82.78,6.23769554]
[1771428263149,7.77918038,82.837,82.76,6.23769554]
[1771428263660,7.77918038,82.817,82.76,10.8796]
[1771428263861,7.77918038,82.817,82.74,6.23769554]
[1771428264258,7.77918038,82.806,82.748,10.8812]
[1771428264559,7.77918038,82.806,82.74,6.23769554]
[1771428264759,7.77918038,82.806,82.741,1.34951867]
[1771428265254,7.77918038,82.806,82.755,10.8803]
[1771428265450,7.77918038,82.806,82.741,1.34951867]
[1771428266759,7.77918038,82.806,82.762,10.8794]
[1771428267055,7.77918038,82.806,82.741,1.34951867]
[1771428267259,7.77918038,82.806,82.733,1.3669]
[1771428267660,7.77918038,82.798,82.752,10.8806]
[1771428268159,10.8748,82.797,82.752,10.8806]
[1771428268359,7.77918038,82.796,82.752,10.8806]
[1771428268559,7.77918038,82.815,82.764,1.36498523]
[1771428268763,7.77918038,82.815,82.75,6.23769554]
[1771428269266,7.77918038,82.806,82.754,10.8804]
[1771428269859,7.77918038,82.802,82.745,10.8815]
[1771428270166,7.77918038,82.802,82.728,76.02]
[1771428270167,7.77918038,82.802,82.732,1.35889345]
[1771428270656,7.77918038,82.794,82.75,10.8809]
[1771428272866,7.77918038,82.794,82.746,1.35701081]
[1771428273261,7.77918038,82.794,82.731,1.29134203]
[1771428273561,7.77918038,82.786,82.741,10.8821]
[1771428274664,7.77918038,82.785,82.741,10.8821]
[1771428275661,7.77918038,82.785,82.716,1.28705758]
[1771428275662,7.77918038,82.782,82.734,10.883]
[1771428276769,7.77918038,82.778,82.74,10.8822]
[1771428277564,7.77918038,82.778,82.732,10.8833]
[1771428277767,7.77918038,82.778,82.716,1.28705758]
[1771428277963,7.77918038,82.769,82.702,1.30108214]
[1771428278165,7.77918038,82.765,82.715,10.8856]
[1771428278870,7.77918038,82.779,82.724,1.29937935]
[1771428279473,7.77918038,82.779,82.73,12.20127243]
[1771428279772,7.77918038,82.779,82.731,1.31767243]
[1771428282070,7.77918038,82.779,82.732,1.51742544]
[1771428282270,7.77918038,82.796,82.732,1.51742544]
[1771428282877,7.77918038,82.796,82.747,10.8814]
[1771428283568,10.8752,82.794,82.746,1.51559525]
[1771428283772,7.77918038,82.793,82.746,1.51559525]
[1771428284275,10.8755,82.792,82.747,10.8813]
[1771428284673,7.77918038,82.791,82.747,10.8813]
[1771428284879,7.77918038,82.791,82.726,76.02]
[1771428284880,7.77918038,82.791,82.745,1.50557999]
[1771428285078,6.23769554,82.82,82.74,6.23769554]
[1771428285079,8.24713705,82.805,82.761,12.38497999]
[1771428286581,8.24713705,82.805,82.767,10.8786]
[1771428288279,10.8723,82.816,82.774,10.8778]
[1771428288678,8.24713705,82.823,82.753,1.52392587]
[1771428289477,8.24713705,82.821,82.753,1.52392587]
[1771428289679,10.8744,82.801,82.756,10.8802]
[1771428289878,8.24713705,82.802,82.74,7.78834095]
[1771428290080,8.24713705,82.802,82.741,1.55064541]
[1771428290279,8.24713705,82.801,82.755,10.8803]
[1771428290585,6.23769554,82.83,82.761,1.54904986]
[1771428290586,8.24713705,82.823,82.761,1.54904986]
[1771428291272,19.11913705,82.819,82.761,1.54904986]
[1771428291472,8.24713705,82.818,82.761,1.54904986]
[1771428291875,8.24713705,82.809,82.762,10.8794]
[1771428293578,8.24713705,82.807,82.762,10.8794]
[1771428295279,8.24713705,82.807,82.729,12.08]
[1771428295280,8.24713705,82.802,82.73,7.83146683]
[1771428295485,8.24713705,82.789,82.711,1.59377129]
[1771428295983,8.24713705,82.784,82.739,10.8824]
[1771428296386,8.24713705,82.784,82.711,1.59377129]
[1771428296574,8.24713705,82.784,82.725,1.59243423]
[1771428297180,8.24713705,82.784,82.743,10.8819]
[1771428297582,8.24713705,82.784,82.725,1.59243423]
[1771428298483,8.24713705,82.784,82.757,10.88]
[1771428298789,8.12911419,82.8,82.757,10.88]
[1771428298987,8.12911419,82.797,82.757,10.88]
[1771428299383,8.12911419,82.797,82.763,10.8792]
[1771428300481,8.12911419,82.797,82.74,6.25534323]
[1771428300790,8.12911419,82.797,82.741,1.62027453]
[1771428301186,8.12911419,82.806,82.741,1.62027453]
[1771428301580,8.12911419,82.806,82.766,10.8788]
[1771428303089,10.8719,82.82,82.772,10.878]
[1771428303987,8.12911419,82.822,82.781,10.8768]
[1771428304997,8.12911419,82.839,82.787,10.876]
[1771428305294,8.12911419,82.837,82.757,1.58202128]
[1771428305494,8.12911419,82.835,82.757,1.58202128]
[1771428305686,10.8738,82.805,82.764,10.879]
[1771428305995,8.12911419,82.806,82.764,10.879]
[1771428306297,76.02,82.839,82.757,1.58202128]
[1771428306298,8.12911419,82.821,82.772,10.878]
[1771428306592,8.12911419,82.821,82.757,1.58202128]
[1771428307293,10.8718,82.82,82.771,10.8782]
[1771428307698,8.12911419,82.82,82.771,10.8782]
[1771428308393,8.12911419,82.819,82.771,10.8782]
[1771428309096,8.12911419,82.817,82.771,10.8782]
[1771428309293,8.12911419,82.815,82.723,1.57016827]
[1771428309597,8.12911419,82.813,82.723,1.57016827]
[1771428309792,8.12911419,82.811,82.724,1.56911954]
[1771428309992,8.12911419,82.792,82.708,1.56911954]
[1771428310397,10.8737,82.806,82.719,21.7701]
[1771428310594,10.8737,82.806,82.711,36.18]
[1771428310595,19.00281419,82.806,82.72,77.58816868]
[1771428310898,8.12911419,82.804,82.721,1.56816868]
[1771428311596,9.18839244,82.803,82.721,1.56816868]
[1771428311790,8.12911419,82.799,82.744,10.8817]
[1771428312794,8.12911419,82.794,82.744,10.8817]
[1771428313399,8.12911419,82.792,82.75,10.8809]
[1771428313998,8.12911419,82.79,82.742,10.8819]
[1771428314398,8.12911419,82.779,82.702,1.56509732]
[1771428314599,8.12911419,82.779,82.733,10.8832]
[1771428315701,8.03862593,82.776,82.726,10.8841]
[1771428316098,8.03862593,82.776,82.694,76.02]
[1771428316297,8.03862593,82.759,82.709,10.8863]
[1771428316495,8.03862593,82.757,82.69,1.57049811]
[1771428316702,11.22764928,82.777,82.639,1009.67151254]
[1771428316703,8.03862593,82.739,82.674,1.56933226]
[1771428318699,8.03862593,82.736,82.685,10.8894]
[1771428318891,8.03862593,82.736,82.674,1.56933226]
[1771428319703,8.03862593,82.736,82.692,10.8886]
[1771428319904,8.03862593,82.736,82.674,1.56933226]
[1771428320400,8.03862593,82.736,82.699,10.8876]
[1771428321404,8.03862593,82.757,82.689,1.55555733]
[1771428322297,8.03862593,82.747,82.693,10.8885]
[1771428322499,8.03862593,82.739,82.663,1.5547352]
[1771428322700,8.03862593,82.719,82.663,1.5547352]
[1771428322899,8.03862593,82.718,82.647,1.5547352]
[1771428323506,8.03862593,82.699,82.642,10.8951]
[1771428324805,10.8879,82.698,82.642,10.8951]
[1771428325209,8.03862593,82.69,82.634,10.8962]
[1771428325502,6.25534323,82.7,82.593,2.14806538]
[1771428325503,8.03862593,82.679,82.593,2.14806538]
[1771428325802,76.02,82.701,82.593,2.14806538]
[1771428326003,8.03862593,82.699,82.615,2.14806538]
[1771428326204,6.25534323,82.66,82.614,2.10528863]
[1771428326406,8.03862593,82.659,82.597,2.14810545]
[1771428326808,8.03862593,82.639,82.577,2.14708805]
[1771428327008,8.03862593,82.639,82.559,12.22522922]
[1771428327203,6.25534323,82.6,82.559,12.22522922]
[1771428327403,8.03862593,82.599,82.559,12.22522922]
[1771428327603,8.03862593,82.599,82.539,76.02]
[1771428327908,8.03862593,82.579,82.513,76.04]
[1771428328112,8.03862593,82.559,82.49,2.23181284]
[1771428328311,8.03862593,82.559,82.506,2.10780068]
[1771428328508,8.03862593,82.559,82.506,76.02]
[1771428328910,8.03862593,82.579,82.507,2.23113785]
[1771428329111,8.03862593,82.579,82.508,76.04]
[1771428329309,8.03862593,82.579,82.507,2.23113785]
[1771428329511,8.03862593,82.579,82.509,2.56039873]
[1771428330013,8.03862593,82.579,82.528,10.9102]
[1771428330505,8.03862593,82.598,82.53,2.55973357]
[1771428330705,8.03862593,82.619,82.541,2.55973357]
[1771428330905,8.03862593,82.619,82.543,2.55973357]
[1771428331115,8.03862593,82.619,82.545,2.55973357]
[1771428331508,8.03862593,82.619,82.56,6.25534323]
[1771428332115,8.03862593,82.619,82.573,10.9043]
[1771428332413,8.03862593,82.619,82.561,2.49136907]
[1771428332414,8.03862593,82.619,82.561,78.53136907]
[1771428332614,8.03862593,82.619,82.572,10.9044]
[1771428333215,8.03862593,82.619,82.561,10.9058]
[1771428333416,8.03862593,82.619,82.562,76.04]
[1771428333814,8.03862593,82.619,82.563,10.9055]
[1771428334211,8.03862593,82.619,82.564,76.04]
[1771428334608,8.03862593,82.619,82.567,10.905]
[1771428335013,8.03862593,82.619,82.565,76.04]
[1771428335214,8.03862593,82.619,82.577,10.9037]
[1771428335419,8.03862593,82.619,82.566,76.04]
[1771428335420,10.892,82.667,82.567,8.14152985]
[1771428335718,6.25534323,82.65,82.58,6.25534323]
[1771428336116,6.25534323,82.65,82.581,76.04]
[1771428336615,6.25534323,82.65,82.598,10.901]
[1771428336809,6.25534323,82.67,82.6,6.25534323]
[1771428337008,6.25534323,82.67,82.601,76.04]
[1771428337213,6.25534323,82.67,82.6,6.25534323]
[1771428337411,8.03862593,82.669,82.601,76.04]
[1771428337815,8.03862593,82.669,82.602,84.18152985]
[1771428338014,8.03862593,82.669,82.602,8.14152985]
[1771428338215,8.03862593,82.669,82.601,10.9006]
[1771428339814,8.03862593,82.669,82.593,76.04]
[1771428340013,8.03862593,82.669,82.594,8.14152985]
[1771428340213,8.03862593,82.669,82.601,8.14152985]
[1771428340214,2.593e-05,82.669,82.601,8.14152985]
[1771428340413,2.593e-05,82.669,82.605,8.14152985]
[1771428340716,2.593e-05,82.669,82.62,6.25534323]
[1771428341015,2.593e-05,82.669,82.643,10.895]
[1771428341409,6.25534323,82.7,82.622,8.14152985]
[1771428341716,6.25534323,82.71,82.669,10.8916]
[1771428342111,6.25534323,82.71,82.659,10.893]
[1771428342309,8.03862593,82.709,82.659,10.893]
[1771428342514,8.03862593,82.709,82.643,76.04]
[1771428342814,36.18,82.776,82.579,169.6108]
[1771428342815,8.03862593,82.689,82.636,10.8959]
[1771428343019,8.03862593,82.689,82.611,76.04]
[1771428343220,8.03862593,82.689,82.616,10.8986]
[1771428344520,8.03862593,82.669,82.605,10.9]
[1771428344716,8.03862593,82.669,82.6,8.14152985]
[1771428345022,8.03862593,82.669,82.586,76.04]
[1771428345222,8.03862593,82.669,82.582,8.10786545]
[1771428345422,6.25534323,82.67,82.582,8.10786545]
[1771428345423,8.01479545,82.666,82.594,10.9015]
[1771428345724,8.01479545,82.666,82.583,76.04]
[1771428346028,8.01479545,82.666,82.626,10.8973]
[1771428346516,8.01479545,82.666,82.624,10.8975]
[1771428346719,8.01479545,82.666,82.607,76.04]
[1771428346917,8.01479545,82.666,82.608,76.04]
[1771428347217,8.01479545,82.666,82.601,8.10786545]
[1771428347417,8.01479545,82.666,82.601,84.14786545]
[1771428348622,8.01479545,82.666,82.621,10.8979]
[1771428348820,8.01479545,82.649,82.589,8.10786545]
[1771428349229,6.25534323,82.65,82.6,10.9007]
[1771428349520,8.01479545,82.668,82.591,8.10786545]
[1771428349720,8.01479545,82.649,82.575,8.10786545]
[1771428349922,8.01479545,82.649,82.576,76.04]
[1771428350830,8.01479545,82.648,82.581,10.9033]
[1771428352224,8.01479545,82.644,82.581,10.9033]
[1771428352831,8.01479545,82.644,82.552,48.26]
[1771428352832,8.01479545,82.629,82.557,8.10786545]
[1771428353435,8.01479545,82.629,82.582,10.9031]
[1771428353628,6.25534323,82.65,82.524,21.8215]
[1771428353629,8.01479545,82.649,82.574,8.10786545]
[1771428353829,8.01479545,82.649,82.576,8.10786545]
[1771428354134,8.01479545,82.649,82.578,8.10786545]
[1771428354525,8.01479545,82.649,82.58,8.10786545]
[1771428355035,10.8949,82.645,82.594,10.9015]
[1771428358232,10.8958,82.638,82.586,10.9026]
[1771428358631,7.67007007,82.637,82.586,10.9026]
[1771428359331,7.67007007,82.637,82.593,10.9016]
[1771428359636,10.8955,82.64,82.593,10.9016]
[1771428360436,10.8944,82.649,82.601,10.9005]
[1771428360635,7.67007007,82.655,82.597,7.55902557]
[1771428361034,10.8939,82.653,82.597,7.55902557]
[1771428361232,7.67007007,82.655,82.597,7.55902557]
[1771428361634,10.8949,82.645,82.597,7.55902557]
[1771428362235,18.56387007,82.653,82.597,7.55902557]
[1771428362537,7.67007007,82.653,82.597,7.55902557]
[1771428362728,10.8928,82.661,82.597,7.55902557]
[1771428362933,10.8928,82.661,82.587,12.08]
[1771428362934,7.67007007,82.67,82.601,7.55902557]
[1771428363328,10.8926,82.663,82.617,10.8984]
[1771428363728,7.67007007,82.67,82.624,10.8976]
[1771428363931,169.2436,82.759,82.623,7.55902557]
[1771428363932,7.67007007,82.687,82.623,7.55902557]
[1771428364338,10.8902,82.681,82.63,10.8967]
[1771428364533,7.67007007,82.68,82.63,10.8967]
[1771428365333,7.67007007,82.68,82.639,10.8956]
[1771428366032,7.67007007,82.68,82.631,10.8966]
[1771428366238,7.67007007,82.679,82.631,10.8966]
[1771428367335,10.8915,82.671,82.623,7.55902557]
[1771428367536,6.27700976,82.66,82.588,7.55902557]
[1771428367735,7.67007007,82.659,82.588,7.55902557]
[1771428367936,7.67007007,82.659,82.606,10.8999]